[Event "Early-Titled-Tuesday-Blitz-February-27-2024"]
[Site "Chess.com"]
[Date "2024.02.27"]
[Round "4"]
[White "AlmasRakhmatullaev"]
[Black "Oleksandr_Bortnyk"]
[Result "0-1"]
[WhiteElo "2833"]
[BlackElo "3062"]
[TimeControl "180+1"]
[EndTime "8:39:31 PST"]
[Termination "Oleksandr_Bortnyk won by resignation"]

1. e4 {[%clk 0:03:00.9]} 1... Nf6 {[%clk 0:02:52.9]} 2. Qe2 {[%clk 0:03:01]}
2... e5 {[%clk 0:02:51.3]} 3. Nf3 {[%clk 0:03:00.3]} 3... Nc6 {[%clk 0:02:50.1]}
4. Nc3 {[%clk 0:02:58.4]} 4... Bc5 {[%clk 0:02:46.8]} 5. d3 {[%clk 0:02:54.1]}
5... d6 {[%clk 0:02:43.8]} 6. h3 {[%clk 0:02:52.3]} 6... h6 {[%clk 0:02:41.7]}
7. g4 {[%clk 0:02:49.3]} 7... Be6 {[%clk 0:02:36.8]} 8. Bg2 {[%clk 0:02:49.2]}
8... a6 {[%clk 0:02:36]} 9. Be3 {[%clk 0:02:45.4]} 9... Nd7 {[%clk 0:02:35.4]}
10. Nd5 {[%clk 0:02:40.3]} 10... Bxd5 {[%clk 0:02:33]} 11. exd5 {[%clk
0:02:41.2]} 11... Ne7 {[%clk 0:02:32.8]} 12. Bxc5 {[%clk 0:02:32.3]} 12... Nxc5
{[%clk 0:02:31.4]} 13. d4 {[%clk 0:02:31.2]} 13... exd4 {[%clk 0:02:23.8]} 14.
Nxd4 {[%clk 0:02:31.5]} 14... O-O {[%clk 0:02:22]} 15. O-O-O {[%clk 0:02:32.2]}
15... Ng6 {[%clk 0:02:21.1]} 16. Qd2 {[%clk 0:02:32.7]} 16... Qg5 {[%clk
0:02:08.3]} 17. Qxg5 {[%clk 0:02:08.6]} 17... hxg5 {[%clk 0:02:08.3]} 18. Nf5
{[%clk 0:02:09.2]} 18... Rfe8 {[%clk 0:02:05.8]} 19. Bf3 {[%clk 0:02:06.7]}
19... Re5 {[%clk 0:01:57.3]} 20. h4 {[%clk 0:02:00.7]} 20... gxh4 {[%clk
0:01:41.7]} 21. Nxh4 {[%clk 0:02:01.6]} 21... Nxh4 {[%clk 0:01:41.2]} 22. Rxh4
{[%clk 0:02:02.5]} 22... Rae8 {[%clk 0:01:41.4]} 23. Rdh1 {[%clk 0:02:01.7]}
23... f6 {[%clk 0:01:33.3]} 24. g5 {[%clk 0:01:49.6]} 24... Re1+ {[%clk
0:01:17.9]} 25. Rxe1 {[%clk 0:01:34.4]} 25... Rxe1+ {[%clk 0:01:18.8]} 26. Kd2
{[%clk 0:01:35.1]} 26... fxg5 {[%clk 0:01:18.6]} 27. Rg4 {[%clk 0:01:20.6]}
27... Re5 {[%clk 0:01:15.8]} 28. b4 {[%clk 0:01:15.9]} 28... Na4 {[%clk
0:00:53.2]} 29. c4 {[%clk 0:01:09.7]} 29... Kf7 {[%clk 0:00:45.7]} 30. Be4
{[%clk 0:01:07.9]} 30... Nb6 {[%clk 0:00:39.1]} 31. Kd3 {[%clk 0:01:06.9]} 31...
Nd7 {[%clk 0:00:37.7]} 32. Rg3 {[%clk 0:00:51.7]} 32... Nf6 {[%clk 0:00:36.1]}
33. Bf3 {[%clk 0:00:52.3]} 33... Rf5 {[%clk 0:00:33.9]} 34. Ke3 {[%clk
0:00:48.8]} 34... Kg6 {[%clk 0:00:32.9]} 35. Rg1 {[%clk 0:00:41.9]} 35... Rf4
{[%clk 0:00:32.6]} 36. Be2 {[%clk 0:00:41.7]} 36... Re4+ {[%clk 0:00:30.3]} 37.
Kd3 {[%clk 0:00:42.2]} 37... Rh4 {[%clk 0:00:30.1]} 38. Ke3 {[%clk 0:00:41.7]}
38... Rh3+ {[%clk 0:00:26.7]} 39. f3 {[%clk 0:00:41.6]} 39... g4 {[%clk
0:00:25.4]} 40. Kf4 {[%clk 0:00:40.6]} 40... Rh2 {[%clk 0:00:19.4]} 41. Bd3+
{[%clk 0:00:41.2]} 41... Kf7 {[%clk 0:00:19.3]} 42. fxg4 {[%clk 0:00:42.1]}
42... Rf2+ {[%clk 0:00:17]} 43. Ke3 {[%clk 0:00:42.4]} 43... Rxa2 {[%clk
0:00:17.9]} 44. g5 {[%clk 0:00:42.7]} 44... Nd7 {[%clk 0:00:18.4]} 45. g6+
{[%clk 0:00:36.5]} 45... Ke7 {[%clk 0:00:18.2]} 46. c5 {[%clk 0:00:25]} 46...
dxc5 {[%clk 0:00:17.8]} 47. bxc5 {[%clk 0:00:24.7]} 47... Nxc5 {[%clk
0:00:18.3]} 48. Bf5 {[%clk 0:00:25.4]} 48... Ra3+ {[%clk 0:00:16.6]} 49. Kd4
{[%clk 0:00:25]} 49... Kd6 {[%clk 0:00:16.8]} 50. Re1 {[%clk 0:00:21.3]} 50...
Ra4+ {[%clk 0:00:17.1]} 51. Kc3 {[%clk 0:00:21.9]} 51... Rf4 {[%clk 0:00:17.7]}
52. Bc2 {[%clk 0:00:20.7]} 52... Rf3+ {[%clk 0:00:16.2]} 53. Kd4 {[%clk
0:00:20.2]} 53... Rf4+ {[%clk 0:00:14.2]} 54. Kc3 {[%clk 0:00:20.8]} 54... b5
{[%clk 0:00:14.2]} 55. Re8 {[%clk 0:00:20.5]} 55... b4+ {[%clk 0:00:14.9]} 56.
Kd2 {[%clk 0:00:15]} 56... Rf2+ {[%clk 0:00:15]} 57. Kc1 {[%clk 0:00:13.3]}
57... b3 {[%clk 0:00:15.3]} 58. Bb1 {[%clk 0:00:14]} 58... Na4 {[%clk
0:00:11.1]} 59. Rd8+ {[%clk 0:00:05.5]} 59... Ke5 {[%clk 0:00:10.1]} 60. Rg8
{[%clk 0:00:06.4]} 60... Rf1+ {[%clk 0:00:04]} 61. Kd2 {[%clk 0:00:06.9]} 61...
Rxb1 {[%clk 0:00:04.9]} 62. Rxg7 {[%clk 0:00:07.6]} 62... Rg1 {[%clk 0:00:05]}
63. Re7+ {[%clk 0:00:05.9]} 63... Kxd5 {[%clk 0:00:05.1]} 64. g7 {[%clk
0:00:05.7]} 64... b2 {[%clk 0:00:04.9]} 65. Re1 {[%clk 0:00:05.9]} 65... Rxg7
{[%clk 0:00:04.7]} 66. Kc2 {[%clk 0:00:06.5]} 66... Rg3 {[%clk 0:00:04.7]} 67.
Rc1 {[%clk 0:00:06.3]} 67... bxc1=Q+ {[%clk 0:00:04.4]} 0-1

[Event "Early-Titled-Tuesday-Blitz-February-27-2024"]
[Site "Chess.com"]
[Date "2024.02.27"]
[Round "4"]
[White "ChessRespected"]
[Black "baki83"]
[Result "0-1"]
[WhiteElo "2579"]
[BlackElo "2844"]
[TimeControl "180+1"]
[EndTime "8:39:41 PST"]
[Termination "baki83 won on time"]

1. d4 {[%clk 0:03:00.9]} 1... d5 {[%clk 0:02:59.9]} 2. Nf3 {[%clk 0:03:01.1]}
2... Nf6 {[%clk 0:02:59.5]} 3. e3 {[%clk 0:03:01.4]} 3... Bf5 {[%clk 0:02:58.1]}
4. c4 {[%clk 0:03:01]} 4... e6 {[%clk 0:02:58.2]} 5. Nc3 {[%clk 0:03:01.1]} 5...
c6 {[%clk 0:02:55.9]} 6. Nh4 {[%clk 0:03:00.2]} 6... Bg6 {[%clk 0:02:53.4]} 7.
Bd2 {[%clk 0:02:57.3]} 7... Nbd7 {[%clk 0:02:52.8]} 8. Nxg6 {[%clk 0:02:51.7]}
8... hxg6 {[%clk 0:02:52.7]} 9. Qc2 {[%clk 0:02:50.8]} 9... Bd6 {[%clk
0:02:51.5]} 10. O-O-O {[%clk 0:02:50.6]} 10... Qe7 {[%clk 0:02:33.3]} 11. Kb1
{[%clk 0:02:49.4]} 11... a6 {[%clk 0:02:12.3]} 12. f4 {[%clk 0:02:40.9]} 12...
dxc4 {[%clk 0:02:03.1]} 13. e4 {[%clk 0:02:34.2]} 13... Bb4 {[%clk 0:01:47.9]}
14. Bxc4 {[%clk 0:02:23.7]} 14... b5 {[%clk 0:01:47.7]} 15. Bb3 {[%clk
0:02:22.3]} 15... c5 {[%clk 0:01:46.5]} 16. e5 {[%clk 0:02:20.7]} 16... c4
{[%clk 0:01:37.8]} 17. exf6 {[%clk 0:01:58.3]} 17... Nxf6 {[%clk 0:01:33.2]} 18.
Bxc4 {[%clk 0:01:52]} 18... bxc4 {[%clk 0:01:33]} 19. Qa4+ {[%clk 0:01:52]}
19... Kf8 {[%clk 0:01:29.6]} 20. d5 {[%clk 0:01:39]} 20... exd5 {[%clk
0:01:06.6]} 21. Rhe1 {[%clk 0:01:34.1]} 21... Qb7 {[%clk 0:00:59.8]} 22. a3
{[%clk 0:01:03]} 22... Bxc3 {[%clk 0:00:59.9]} 23. Bxc3 {[%clk 0:01:02.8]} 23...
Ne4 {[%clk 0:01:00]} 24. Qb4+ {[%clk 0:00:55.8]} 24... Qxb4 {[%clk 0:00:58.4]}
25. Bxb4+ {[%clk 0:00:56.7]} 25... Kg8 {[%clk 0:00:58.7]} 26. Rxd5 {[%clk
0:00:56.8]} 26... Nf6 {[%clk 0:00:54.5]} 27. Rd4 {[%clk 0:00:36.1]} 27... Rxh2
{[%clk 0:00:54.2]} 28. Rxc4 {[%clk 0:00:36.2]} 28... Rxg2 {[%clk 0:00:54.5]} 29.
Bc3 {[%clk 0:00:33]} 29... Nd5 {[%clk 0:00:50.5]} 30. Be5 {[%clk 0:00:32]} 30...
f6 {[%clk 0:00:50.2]} 31. Bd6 {[%clk 0:00:27.2]} 31... g5 {[%clk 0:00:39.8]} 32.
fxg5 {[%clk 0:00:26.4]} 32... Rxg5 {[%clk 0:00:39.4]} 33. Ka2 {[%clk 0:00:23.7]}
33... Kf7 {[%clk 0:00:37.2]} 34. Rc5 {[%clk 0:00:20.7]} 34... Rf5 {[%clk
0:00:28.3]} 35. Rd1 {[%clk 0:00:20]} 35... Ke6 {[%clk 0:00:28.1]} 36. Rc6 {[%clk
0:00:19.8]} 36... Kd7 {[%clk 0:00:25.7]} 37. Rdc1 {[%clk 0:00:20]} 37... Rf1
{[%clk 0:00:18.9]} 38. R1c5 {[%clk 0:00:18.2]} 38... Rd1 {[%clk 0:00:17]} 39.
Bg3 {[%clk 0:00:17.2]} 39... Ke7 {[%clk 0:00:14]} 40. Bd6+ {[%clk 0:00:15.3]}
40... Kf7 {[%clk 0:00:14]} 41. Bg3 {[%clk 0:00:14.8]} 41... g5 {[%clk
0:00:14.4]} 42. Rd6 {[%clk 0:00:14.4]} 42... Ke7 {[%clk 0:00:14.5]} 43. Rdxd5
{[%clk 0:00:14.1]} 43... Rxd5 {[%clk 0:00:14.3]} 44. Rxd5 {[%clk 0:00:15]} 44...
Ke6 {[%clk 0:00:15]} 45. Rd6+ {[%clk 0:00:14.4]} 45... Kf5 {[%clk 0:00:15.5]}
46. Be1 {[%clk 0:00:14]} 46... Ke5 {[%clk 0:00:15.6]} 47. Rb6 {[%clk 0:00:13.5]}
47... f5 {[%clk 0:00:16]} 48. Bc3+ {[%clk 0:00:13.6]} 48... Ke4 {[%clk
0:00:16.3]} 49. Rb4+ {[%clk 0:00:13.5]} 49... Kf3 {[%clk 0:00:16.6]} 50. Rd4
{[%clk 0:00:11.8]} 50... g4 {[%clk 0:00:11.8]} 51. Bd2 {[%clk 0:00:09.2]} 51...
g3 {[%clk 0:00:12.1]} 52. Rf4+ {[%clk 0:00:09.3]} 52... Ke2 {[%clk 0:00:12.6]}
53. Rxf5 {[%clk 0:00:08.2]} 53... Rg8 {[%clk 0:00:12]} 54. Bb4 {[%clk
0:00:03.8]} 54... g2 {[%clk 0:00:10.6]} 55. Bc5 {[%clk 0:00:04.1]} 55... g1=Q
{[%clk 0:00:10.2]} 56. Bxg1 {[%clk 0:00:04.1]} 56... Rxg1 {[%clk 0:00:11.1]} 57.
Rf6 {[%clk 0:00:04.2]} 57... Kd3 {[%clk 0:00:11.6]} 58. Rxa6 {[%clk 0:00:04.1]}
58... Kc4 {[%clk 0:00:12.3]} 59. Rb6 {[%clk 0:00:04.5]} 59... Rg2 {[%clk
0:00:12.4]} 60. Rb4+ {[%clk 0:00:04.6]} 60... Kc5 {[%clk 0:00:12.7]} 61. Rb3
{[%clk 0:00:05.1]} 61... Kc4 {[%clk 0:00:13]} 62. Rb4+ {[%clk 0:00:04.6]} 62...
Kc5 {[%clk 0:00:13.4]} 63. Rb8 {[%clk 0:00:04.8]} 63... Rh2 {[%clk 0:00:12.8]}
64. a4 {[%clk 0:00:05]} 64... Kc6 {[%clk 0:00:12.8]} 65. Ka3 {[%clk 0:00:05.2]}
65... Kc5 {[%clk 0:00:12.1]} 66. Rb5+ {[%clk 0:00:05.2]} 66... Kc6 {[%clk
0:00:12.2]} 67. Rb8 {[%clk 0:00:05]} 67... Kc5 {[%clk 0:00:12]} 68. Rb3 {[%clk
0:00:05.9]} 68... Rg2 {[%clk 0:00:10.8]} 69. a5 {[%clk 0:00:05.7]} 69... Kc6
{[%clk 0:00:11.3]} 70. Rb6+ {[%clk 0:00:05.6]} 70... Kc5 {[%clk 0:00:11.3]} 71.
b4+ {[%clk 0:00:05]} 71... Kd5 {[%clk 0:00:11.7]} 72. a6 {[%clk 0:00:04.6]}
72... Kc4 {[%clk 0:00:12.2]} 73. Rc6+ {[%clk 0:00:03.6]} 73... Kb5 {[%clk
0:00:12.1]} 74. a7 {[%clk 0:00:02]} 74... Rg3+ {[%clk 0:00:11.4]} 0-1

[Event "Early-Titled-Tuesday-Blitz-February-27-2024"]
[Site "Chess.com"]
[Date "2024.02.27"]
[Round "4"]
[White "Yurovskykh_Oleksandr"]
[Black "TigrVShlyape"]
[Result "1-0"]
[WhiteElo "2685"]
[BlackElo "2863"]
[TimeControl "180+1"]
[EndTime "8:39:52 PST"]
[Termination "Yurovskykh_Oleksandr won on time"]

1. d4 {[%clk 0:02:55.6]} 1... f5 {[%clk 0:02:58.9]} 2. Nc3 {[%clk 0:02:54.3]}
2... Nf6 {[%clk 0:02:56.5]} 3. Bg5 {[%clk 0:02:54.7]} 3... d5 {[%clk 0:02:56]}
4. e3 {[%clk 0:02:55]} 4... Be6 {[%clk 0:02:53.5]} 5. Nf3 {[%clk 0:02:55.3]}
5... Nbd7 {[%clk 0:02:52.2]} 6. Ne2 {[%clk 0:02:55.2]} 6... c6 {[%clk
0:02:45.6]} 7. Nf4 {[%clk 0:02:55]} 7... Bf7 {[%clk 0:02:45.6]} 8. Nd3 {[%clk
0:02:55.4]} 8... Bh5 {[%clk 0:02:39.3]} 9. Be2 {[%clk 0:02:54.1]} 9... Bxf3
{[%clk 0:02:38.6]} 10. Bxf3 {[%clk 0:02:55]} 10... e6 {[%clk 0:02:38.1]} 11. O-O
{[%clk 0:02:47.8]} 11... Bd6 {[%clk 0:02:37.7]} 12. Rc1 {[%clk 0:02:45.1]} 12...
O-O {[%clk 0:02:33.1]} 13. c4 {[%clk 0:02:44.4]} 13... a5 {[%clk 0:02:31]} 14.
Be2 {[%clk 0:02:21.6]} 14... Qb8 {[%clk 0:02:29.7]} 15. Bf4 {[%clk 0:02:19]}
15... Re8 {[%clk 0:02:24.2]} 16. c5 {[%clk 0:02:13.4]} 16... Bc7 {[%clk
0:02:23.5]} 17. Bxc7 {[%clk 0:02:13.1]} 17... Qxc7 {[%clk 0:02:23.1]} 18. f4
{[%clk 0:02:13.7]} 18... Reb8 {[%clk 0:01:52.9]} 19. b3 {[%clk 0:02:09.1]} 19...
b6 {[%clk 0:01:50.4]} 20. cxb6 {[%clk 0:02:08.7]} 20... Rxb6 {[%clk 0:01:48.9]}
21. Qc2 {[%clk 0:01:37.8]} 21... Qa7 {[%clk 0:01:46.1]} 22. Nb2 {[%clk
0:01:28.2]} 22... Rc8 {[%clk 0:01:43.7]} 23. Na4 {[%clk 0:01:28.1]} 23... Rb7
{[%clk 0:01:41]} 24. Bd3 {[%clk 0:01:20.4]} 24... Rbc7 {[%clk 0:01:30.4]} 25.
Nc5 {[%clk 0:01:09]} 25... Nxc5 {[%clk 0:01:29.6]} 26. Qxc5 {[%clk 0:01:09.9]}
26... Kf7 {[%clk 0:01:20]} 27. Rf2 {[%clk 0:01:03]} 27... Qa8 {[%clk 0:01:06.7]}
28. Rfc2 {[%clk 0:00:57.9]} 28... Nd7 {[%clk 0:00:58.5]} 29. Qd6 {[%clk
0:00:50.5]} 29... Nf6 {[%clk 0:00:57.6]} 30. h3 {[%clk 0:00:43]} 30... h5 {[%clk
0:00:55.5]} 31. Qa3 {[%clk 0:00:39]} 31... h4 {[%clk 0:00:49.3]} 32. Rc5 {[%clk
0:00:37.9]} 32... Ra7 {[%clk 0:00:49.3]} 33. Qa4 {[%clk 0:00:38]} 33... Nd7
{[%clk 0:00:23]} 34. Rxc6 {[%clk 0:00:33.3]} 34... Rxc6 {[%clk 0:00:23.3]} 35.
Qxc6 {[%clk 0:00:30.8]} 35... Qb8 {[%clk 0:00:22.1]} 36. Bb5 {[%clk 0:00:23]}
36... Nf6 {[%clk 0:00:20.7]} 37. a4 {[%clk 0:00:20.3]} 37... Ne4 {[%clk
0:00:20.3]} 38. Qc8 {[%clk 0:00:19.3]} 38... Qxc8 {[%clk 0:00:19.9]} 39. Rxc8
{[%clk 0:00:20.2]} 39... g5 {[%clk 0:00:20]} 40. fxg5 {[%clk 0:00:19.4]} 40...
Nxg5 {[%clk 0:00:19.8]} 41. Rh8 {[%clk 0:00:19.6]} 41... Rc7 {[%clk 0:00:19.4]}
42. Ra8 {[%clk 0:00:18.3]} 42... Ne4 {[%clk 0:00:18.2]} 43. Kf1 {[%clk
0:00:13.1]} 43... Rc3 {[%clk 0:00:18.1]} 44. Rxa5 {[%clk 0:00:12.5]} 44... Rxb3
{[%clk 0:00:17.6]} 45. Ra8 {[%clk 0:00:12.2]} 45... Rxe3 {[%clk 0:00:16.4]} 46.
a5 {[%clk 0:00:11.1]} 46... Ra3 {[%clk 0:00:16]} 47. a6 {[%clk 0:00:10.9]} 47...
Nd6 {[%clk 0:00:14.7]} 48. Bc6 {[%clk 0:00:10.8]} 48... Nc4 {[%clk 0:00:14]} 49.
Bb7 {[%clk 0:00:10.5]} 49... Kg7 {[%clk 0:00:14.1]} 50. Re8 {[%clk 0:00:10.5]}
50... Kf6 {[%clk 0:00:13.9]} 51. Rh8 {[%clk 0:00:10.4]} 51... Kg5 {[%clk
0:00:13.9]} 52. Rg8+ {[%clk 0:00:10.5]} 52... Kf4 {[%clk 0:00:14.1]} 53. Ke2
{[%clk 0:00:10.5]} 53... Ra2+ {[%clk 0:00:14.2]} 54. Kd1 {[%clk 0:00:10.5]}
54... Ne3+ {[%clk 0:00:13.4]} 55. Kc1 {[%clk 0:00:10.5]} 55... Ra4 {[%clk
0:00:13]} 56. Kb2 {[%clk 0:00:10.7]} 56... Nc4+ {[%clk 0:00:12.8]} 57. Kb3
{[%clk 0:00:10.9]} 57... Ra1 {[%clk 0:00:13.1]} 58. Kb4 {[%clk 0:00:11.1]} 58...
Ke4 {[%clk 0:00:13.3]} 59. Kb5 {[%clk 0:00:10.9]} 59... Ra5+ {[%clk 0:00:13.1]}
60. Kc6 {[%clk 0:00:11]} 60... Kxd4 {[%clk 0:00:13.5]} 61. Rh8 {[%clk
0:00:04.8]} 61... Ke3 {[%clk 0:00:13.1]} 62. Rxh4 {[%clk 0:00:05.2]} 62... d4
{[%clk 0:00:13.6]} 63. Rh8 {[%clk 0:00:04]} 63... d3 {[%clk 0:00:13.9]} 64. Rd8
{[%clk 0:00:04.7]} 64... d2 {[%clk 0:00:14.2]} 65. h4 {[%clk 0:00:04.6]} 65...
Ne5+ {[%clk 0:00:13.5]} 66. Kc7 {[%clk 0:00:04.5]} 66... Nd3 {[%clk 0:00:12.6]}
67. Kb6 {[%clk 0:00:02]} 67... Rxa6+ {[%clk 0:00:12.5]} 68. Bxa6 {[%clk
0:00:02.1]} 68... d1=Q {[%clk 0:00:06.6]} 69. Rxd3+ {[%clk 0:00:02.3]} 69...
Qxd3 {[%clk 0:00:06.8]} 70. Bxd3 {[%clk 0:00:03.2]} 70... Kxd3 {[%clk
0:00:06.1]} 71. h5 {[%clk 0:00:04.1]} 71... e5 {[%clk 0:00:06.1]} 72. h6 {[%clk
0:00:05]} 72... e4 {[%clk 0:00:06.7]} 73. h7 {[%clk 0:00:05.9]} 73... e3 {[%clk
0:00:07.3]} 74. h8=Q {[%clk 0:00:06.5]} 74... e2 {[%clk 0:00:08.2]} 75. Qe5
{[%clk 0:00:06.7]} 75... Kd2 {[%clk 0:00:08.4]} 76. Qd4+ {[%clk 0:00:07.1]}
76... Kc2 {[%clk 0:00:08.8]} 77. Qe3 {[%clk 0:00:07.4]} 77... Kd1 {[%clk
0:00:09.4]} 78. Qd3+ {[%clk 0:00:07.9]} 78... Ke1 {[%clk 0:00:09.2]} 79. Qxf5
{[%clk 0:00:08.6]} 79... Kd2 {[%clk 0:00:09.2]} 80. Qe4 {[%clk 0:00:08.9]} 80...
e1=Q {[%clk 0:00:09]} 81. Qxe1+ {[%clk 0:00:09.8]} 81... Kxe1 {[%clk 0:00:09.6]}
82. g4 {[%clk 0:00:10.7]} 1-0

[Event "Early-Titled-Tuesday-Blitz-February-27-2024"]
[Site "Chess.com"]
[Date "2024.02.27"]
[Round "4"]
[White "ArchibaldCerveza29"]
[Black "shimastream"]
[Result "0-1"]
[WhiteElo "2455"]
[BlackElo "2951"]
[TimeControl "180+1"]
[EndTime "8:39:56 PST"]
[Termination "shimastream won by resignation"]

1. e4 {[%clk 0:03:00.9]} 1... c5 {[%clk 0:02:55.7]} 2. Nf3 {[%clk 0:03:00.9]}
2... d6 {[%clk 0:02:54.9]} 3. d4 {[%clk 0:03:01.4]} 3... cxd4 {[%clk 0:02:53.7]}
4. Nxd4 {[%clk 0:03:02.3]} 4... Nf6 {[%clk 0:02:53.4]} 5. Nc3 {[%clk 0:03:03]}
5... g6 {[%clk 0:02:53.4]} 6. Be3 {[%clk 0:03:00.9]} 6... Bg7 {[%clk 0:02:53.2]}
7. f3 {[%clk 0:03:01.4]} 7... O-O {[%clk 0:02:52.8]} 8. Qd2 {[%clk 0:03:02]}
8... Nc6 {[%clk 0:02:52.6]} 9. O-O-O {[%clk 0:03:02.2]} 9... Bd7 {[%clk
0:02:51.3]} 10. g4 {[%clk 0:03:01.2]} 10... Rc8 {[%clk 0:02:47.2]} 11. h4 {[%clk
0:03:00.5]} 11... Ne5 {[%clk 0:02:43.4]} 12. h5 {[%clk 0:02:54.7]} 12... Qa5
{[%clk 0:02:37.6]} 13. Nb3 {[%clk 0:02:48.6]} 13... Qc7 {[%clk 0:02:35]} 14. Be2
{[%clk 0:02:46.8]} 14... b5 {[%clk 0:02:27.8]} 15. Kb1 {[%clk 0:01:50.1]} 15...
b4 {[%clk 0:02:19.8]} 16. Nd5 {[%clk 0:01:49.2]} 16... Nxd5 {[%clk 0:02:17.5]}
17. exd5 {[%clk 0:01:50.1]} 17... a5 {[%clk 0:02:16.7]} 18. Rc1 {[%clk
0:01:33.1]} 18... a4 {[%clk 0:01:57.9]} 19. Nd4 {[%clk 0:01:32.2]} 19... Nc4
{[%clk 0:01:58]} 20. Bxc4 {[%clk 0:01:26.1]} 20... Qxc4 {[%clk 0:01:58.9]} 21.
Rhd1 {[%clk 0:01:00.2]} 21... Rc5 {[%clk 0:01:19]} 22. Nc6 {[%clk 0:00:35.4]}
22... Rxc6 {[%clk 0:00:40.2]} 23. dxc6 {[%clk 0:00:35.6]} 23... Bxc6 {[%clk
0:00:41.1]} 24. Bd4 {[%clk 0:00:29]} 24... e5 {[%clk 0:00:37.4]} 25. Be3 {[%clk
0:00:28.7]} 25... Bxf3 {[%clk 0:00:37.5]} 26. Rf1 {[%clk 0:00:28]} 26... Bd5
{[%clk 0:00:25.3]} 27. b3 {[%clk 0:00:26]} 27... axb3 {[%clk 0:00:23.3]} 28.
cxb3 {[%clk 0:00:19.7]} 28... Qe4+ {[%clk 0:00:21.1]} 29. Ka1 {[%clk 0:00:17.8]}
29... Be6 {[%clk 0:00:15.5]} 30. Bh6 {[%clk 0:00:17.4]} 30... d5 {[%clk
0:00:12.4]} 31. Bxg7 {[%clk 0:00:17.3]} 31... Kxg7 {[%clk 0:00:13.3]} 32. hxg6
{[%clk 0:00:16.1]} 32... hxg6 {[%clk 0:00:12.5]} 33. g5 {[%clk 0:00:16.5]} 33...
Rh8 {[%clk 0:00:10.3]} 34. Rce1 {[%clk 0:00:14.8]} 34... Qd4+ {[%clk 0:00:06.1]}
35. Qxd4 {[%clk 0:00:15]} 35... exd4 {[%clk 0:00:07]} 36. Rf4 {[%clk 0:00:14.5]}
36... d3 {[%clk 0:00:06.9]} 37. Rd4 {[%clk 0:00:15]} 37... Rh3 {[%clk
0:00:06.5]} 38. Rd1 {[%clk 0:00:14.8]} 38... Bf5 {[%clk 0:00:06.9]} 39. Rxd5
{[%clk 0:00:14.8]} 39... Rg3 {[%clk 0:00:06.9]} 40. Kb2 {[%clk 0:00:14.1]} 40...
Rg2+ {[%clk 0:00:06.9]} 41. Kc1 {[%clk 0:00:14.6]} 41... Rc2+ {[%clk 0:00:06.5]}
42. Kb1 {[%clk 0:00:15.1]} 42... Rg2 {[%clk 0:00:05.7]} 43. Ka1 {[%clk
0:00:15.1]} 43... Rxg5 {[%clk 0:00:05.3]} 44. Kb1 {[%clk 0:00:14.5]} 44... Rg2
{[%clk 0:00:05.3]} 45. Ka1 {[%clk 0:00:14.1]} 45... Kf6 {[%clk 0:00:04.5]} 46.
a4 {[%clk 0:00:14.6]} 46... bxa3 {[%clk 0:00:04.3]} 47. b4 {[%clk 0:00:15.3]}
47... Rb2 {[%clk 0:00:04.4]} 48. b5 {[%clk 0:00:13.8]} 48... Ke6 {[%clk
0:00:04]} 49. Rd8 {[%clk 0:00:13.5]} 49... Rxb5 {[%clk 0:00:03.6]} 50. Ka2
{[%clk 0:00:13.2]} 50... Ra5 {[%clk 0:00:03.1]} 51. Rd4 {[%clk 0:00:12.6]} 51...
Kf6 {[%clk 0:00:03.4]} 52. Rd6+ {[%clk 0:00:12.7]} 52... Kg7 {[%clk 0:00:02.3]}
53. Rd4 {[%clk 0:00:11.9]} 53... g5 {[%clk 0:00:02.5]} 54. Rf1 {[%clk
0:00:10.3]} 54... Be6+ {[%clk 0:00:02.4]} 55. Ka1 {[%clk 0:00:10.1]} 55... Bf5
{[%clk 0:00:02.9]} 56. Rd6 {[%clk 0:00:07.1]} 56... Bg6 {[%clk 0:00:03.1]} 57.
Rg1 {[%clk 0:00:07]} 57... Ra4 {[%clk 0:00:02.8]} 58. Ka2 {[%clk 0:00:06.6]}
58... g4 {[%clk 0:00:02.7]} 59. Kb3 {[%clk 0:00:07]} 59... Rf4 {[%clk 0:00:03]}
60. Kxa3 {[%clk 0:00:07.1]} 60... Kh6 {[%clk 0:00:03.6]} 61. Kb3 {[%clk
0:00:07.2]} 61... Kg5 {[%clk 0:00:04.2]} 62. Kc3 {[%clk 0:00:07.3]} 62... Rf2
{[%clk 0:00:04.4]} 63. Rd5+ {[%clk 0:00:07.3]} 63... Bf5 {[%clk 0:00:03.7]} 64.
Kd4 {[%clk 0:00:06.6]} 64... Rf4+ {[%clk 0:00:03.7]} 65. Ke3 {[%clk 0:00:06.8]}
65... Rf3+ {[%clk 0:00:04.1]} 66. Kd2 {[%clk 0:00:07.2]} 66... f6 {[%clk
0:00:04.4]} 67. Ra5 {[%clk 0:00:06.7]} 67... Rf2+ {[%clk 0:00:04.3]} 68. Ke3
{[%clk 0:00:07.1]} 68... Re2+ {[%clk 0:00:04.7]} 69. Kd4 {[%clk 0:00:07.6]}
69... Rf2 {[%clk 0:00:04.9]} 70. Ke3 {[%clk 0:00:07.5]} 70... Rf3+ {[%clk
0:00:05.3]} 71. Kd2 {[%clk 0:00:08.2]} 71... Kf4 {[%clk 0:00:05.7]} 72. Ra4+
{[%clk 0:00:08.4]} 72... Be4 {[%clk 0:00:05.9]} 73. Re1 {[%clk 0:00:07.9]} 73...
f5 {[%clk 0:00:06.1]} 74. Rb4 {[%clk 0:00:07.8]} 74... Rf2+ {[%clk 0:00:06.4]}
75. Kd1 {[%clk 0:00:08.2]} 75... g3 {[%clk 0:00:06.1]} 76. Rg1 {[%clk
0:00:08.3]} 76... g2 {[%clk 0:00:06.2]} 77. Ke1 {[%clk 0:00:08.9]} 77... Ke3
{[%clk 0:00:05.7]} 78. Ra4 {[%clk 0:00:07.6]} 78... d2+ {[%clk 0:00:03.5]} 0-1